bitfinex/quotes_SOLUSD_20240716
["timestamp","ask_amount","ask_price","bid_price","bid_amount"]
[1721138543491,1.60626877,155.67,155.59,21.9592]
[1721138543713,1.60626877,155.67,155.6,16.0665]
[1721138544092,6.4248,155.65,155.6,16.0665]
[1721138544398,10.0,155.63,155.56,6.2234]
[1721138544598,8.03306356,155.62,155.56,6.2234]
[1721138544809,6.4271,155.59,155.54,17.3833054]
[1721138544991,11.60707625,155.62,155.54,17.3833054]
[1721138545196,6.427,155.6,155.54,23.8121054]
[1721138545601,1.60707625,155.62,155.55,6.4287]
[1721138545804,10.0,155.61,155.54,17.3833054]
[1721138546116,1.60695429,155.6,155.54,17.3833054]
[1721138546288,6.4288,155.55,155.54,0.8419054]
[1721138547096,16.4288,155.55,155.54,0.8419054]
[1721138547295,1.60756107,155.56,155.54,0.8419054]
[1721138547491,10.0,155.56,155.54,0.8419054]
[1721138547705,8.03630404,155.55,155.54,0.8419054]
[1721138548324,1.60750404,155.55,155.54,0.8419054]
[1721138548495,6.4285,155.56,155.54,0.8419054]
[1721138548819,8.03613085,155.55,155.54,0.8419054]
[1721138549047,18.03613085,155.55,155.54,0.8419054]
[1721138549209,73.37613085,155.55,155.54,0.8419054]
[1721138549519,73.03613085,155.55,155.54,0.8419054]
[1721138549700,28.03613085,155.55,155.54,0.8419054]
[1721138549910,6.4316,155.48,155.47,0.04039539]
[1721138550111,1.60810482,155.51,155.47,0.04039539]
[1721138550329,8.03664035,155.55,155.49,16.0778]
[1721138550491,1.6074485,155.57,155.49,16.0778]
[1721138550697,6.6373954,155.56,155.49,16.0778]
[1721138550889,1.60727998,155.55,155.49,16.0778]
[1721138551127,6.6373954,155.56,155.52,16.0746]
[1721138551335,1.60710349,155.59,155.52,16.0746]
[1721138551624,6.63637572,155.61,155.56,6.428]
[1721138551919,6.63637572,155.61,155.55,22.5003]
[1721138552107,1.60683861,155.6,155.55,16.0718]
[1721138552306,6.63637572,155.61,155.54,6.4288]
[1721138552508,13.06277572,155.61,155.55,7.71417079]
[1721138552819,6.4268,155.6,155.56,1.28546871]
[1721138553322,13.06267572,155.61,155.57,1.28546877]
[1721138553713,6.63637572,155.61,155.58,1.28539704]
[1721138554102,1.60646267,155.65,155.6,6.4267]
[1721138554299,8.03055802,155.66,155.6,6.4267]
[1721138554512,8.03055802,155.66,155.61,7.49147002]
[1721138554703,1.6061301,155.67,155.59,16.0668]
[1721138554907,6.4246,155.66,155.61,6.4263]
[1721138555109,26.0564,155.71,155.59,22.4935]
[1721138555110,10.0,155.68,155.59,22.4935]
[1721138555324,6.4247,155.65,155.6,6.4266]
[1721138555520,6.4253,155.64,155.59,16.0668]
[1721138555832,6.425,155.65,155.6,0.340606]
[1721138556044,1.60614262,155.68,155.62,6.4258]
[1721138556203,1.60616544,155.67,155.59,16.0668]
[1721138556404,6.4251,155.64,155.58,6.4274]
[1721138556703,6.4251,155.64,155.56,16.0709]
[1721138556704,1.60634292,155.63,155.56,16.0709]
[1721138557116,6.4266,155.61,155.56,16.0709]
[1721138557437,6.4266,155.61,155.55,6.4287]
[1721138557438,1.60634292,155.63,155.58,16.0679]
[1721138557604,8.03114257,155.65,155.59,1.28515405]
[1721138557803,1.60633371,155.64,155.54,16.0721]
[1721138558040,6.4274,155.59,155.54,22.5013]
[1721138558327,6.4259,155.62,155.56,6.4282]
[1721138558526,1.60666042,155.61,155.54,16.0721]
[1721138558732,1.60694069,155.6,155.54,16.0721]
[1721138558910,1.60684666,155.63,155.54,16.0721]
[1721138559234,1.6066847,155.66,155.6,16.0666]
[1721138559401,6.4247,155.65,155.6,16.0666]
[1721138559608,8.0309847,155.66,155.6,22.4932]
[1721138559799,1.60628773,155.68,155.61,6.4259]
[1721138559999,1.60627611,155.67,155.62,6.4257]
[1721138560220,6.4244,155.66,155.6,22.4931]
[1721138560422,1.60627611,155.67,155.6,16.0666]
[1721138560614,6.4247,155.65,155.6,16.0666]
[1721138561112,6.4263,155.61,155.56,16.07]
[1721138561305,21.60633628,155.64,155.53,15.3372]
[1721138561513,1.60666802,155.63,155.55,6.4285]
[1721138561831,8.03246802,155.63,155.57,6.4276]
[1721138562037,6.4272,155.59,155.54,6.4291]
[1721138562532,6.4269,155.6,155.55,6.4287]
[1721138562742,10.0,155.62,155.53,31.4111]
[1721138562743,1.6069081,155.59,155.53,31.4111]
[1721138562940,6.4272,155.59,155.53,15.3372]
[1721138563111,1.60711406,155.61,155.53,31.4105]
[1721138563311,1.60690512,155.6,155.55,6.4284]
[1721138563607,6.4263,155.61,155.56,1.28527618]
[1721138563807,1.60690492,155.63,155.55,16.071]
[1721138564122,1.60657631,155.62,155.55,16.071]
[1721138564510,8.03277631,155.62,155.56,6.428]
[1721138564829,6.4262,155.62,155.57,6.4279]
[1721138565008,6.4263,155.61,155.56,6.4283]
[1721138565629,1.60664946,155.63,155.51,6.1045]
[1721138566035,8.03204798,155.64,155.52,46.38633896]
[1721138566227,6.4259,155.62,155.52,46.38633896]
[1721138566538,8.03204798,155.64,155.52,46.38633896]
[1721138566736,6.4259,155.62,155.57,16.0692]
[1721138567245,6.63858572,155.65,155.53,51.4273]
[1721138567246,6.427,155.6,155.54,16.0726]
[1721138567421,1.60676262,155.62,155.54,16.0726]
[1721138567618,1.60676262,155.62,155.47,0.04039539]
[1721138567619,6.4959,155.58,155.47,0.04039539]
[1721138567945,6.4337,155.43,155.39,0.8419054]
[1721138568134,16.0833,155.45,155.39,0.8419054]
[1721138568135,6.433,155.45,155.39,0.8419054]
[1721138568332,8.03973504,155.49,155.39,0.8419054]
[1721138568650,1.60810886,155.5,155.43,7.72008709]
[1721138568819,6.4317,155.48,155.43,1.28648709]
[1721138569153,21.60790385,155.47,155.39,0.8419054]
[1721138569329,6.4324,155.47,155.39,0.8419054]
[1721138569531,6.4325,155.46,155.4,6.4349]
[1721138569840,6.433,155.45,155.39,23.3655054]
[1721138570026,1.6083153,155.47,155.39,16.9301054]
[1721138570223,1.6083153,155.47,155.39,0.8419054]
[1721138570224,10.0,155.47,155.39,0.8419054]
[1721138570526,11.60846278,155.48,155.41,16.0858]
[1721138570723,1.60830368,155.47,155.42,107.07244213]
[1721138570948,1.60828663,155.48,155.42,100.63844213]
[1721138571131,6.4336,155.44,155.42,100.63844213]
[1721138571441,8.04213216,155.44,155.42,100.63844213]
[1721138572150,1.60853216,155.44,155.42,100.63844213]
[1721138572455,1.60837334,155.43,155.42,100.63844213]
[1721138572823,18.04200312,155.44,155.42,100.63844213]
[1721138573724,18.04049953,155.48,155.42,100.63844213]
[1721138573922,11.60859953,155.48,155.42,100.63844213]
[1721138574143,10.0,155.47,155.42,100.63844213]
[1721138574348,6.4337,155.43,155.42,100.63844213]
[1721138574526,11.60857091,155.44,155.42,100.63844213]
[1721138574724,1.60857091,155.44,155.42,100.63844213]
[1721138575043,6.4337,155.43,155.42,100.63844213]
[1721138575649,6.4332,155.45,155.42,100.63844213]
[1721138575828,1.60853318,155.44,155.42,100.63844213]
[1721138576023,16.4337,155.43,155.42,100.63844213]
[1721138576225,71.6037,155.43,155.42,100.63844213]
[1721138576430,91.0537,155.43,155.42,96.31844213]
[1721138576625,71.7737,155.43,155.42,93.43844213]
[1721138576953,26.4337,155.43,155.42,93.43844213]
[1721138577359,16.4337,155.43,155.42,93.43844213]
[1721138578022,26.4337,155.43,155.42,93.43844213]
[1721138578748,71.4337,155.43,155.42,93.43844213]
[1721138578944,71.7737,155.43,155.42,90.55844213]
[1721138579127,71.7737,155.43,155.42,87.67844213]
[1721138579329,91.0537,155.43,155.42,84.79844213]
[1721138579643,71.7737,155.43,155.42,83.35844213]
[1721138580040,16.435,155.4,155.39,0.8419054]
[1721138580349,1.60926466,155.4,155.39,0.8419054]
[1721138580645,10.0,155.4,155.39,0.8419054]
[1721138580946,16.435,155.4,155.39,0.8419054]
[1721138581322,16.775,155.4,155.39,0.8419054]
[1721138581527,16.435,155.4,155.39,0.8419054]
[1721138581839,6.435,155.4,155.39,0.8419054]
[1721138582039,8.04361275,155.41,155.39,0.8419054]
[1721138582427,6.4339,155.43,155.39,0.8419054]
[1721138582626,1.60867859,155.45,155.39,0.8419054]
[1721138582830,8.04157859,155.45,155.4,6.4347]
[1721138583042,1.60868212,155.47,155.39,23.3061054]
[1721138583242,1.60868212,155.47,155.42,6.4341]
[1721138583840,1.60868212,155.47,155.41,22.52]
[1721138584061,1.60868212,155.47,155.42,6.434]
[1721138584259,6.4326,155.46,155.41,16.0856]
[1721138584555,6.432,155.48,155.42,6.4337]
[1721138585053,21.60805856,155.47,155.39,13.6537054]
[1721138585228,6.4333,155.45,155.39,7.2184054]
[1721138585429,8.04170345,155.45,155.39,13.6538054]
[1721138585626,1.60840345,155.45,155.39,7.2184054]
[1721138585857,1.60847072,155.46,155.39,7.2184054]
[1721138586039,1.60849286,155.45,155.39,7.2184054]
[1721138586247,11.60847176,155.47,155.4,16.0868]
[1721138586536,6.4327,155.46,155.4,22.5214]
[1721138586746,11.60847176,155.47,155.42,6.434]
[1721138587063,6.432,155.48,155.42,16.0847]
[1721138587064,1.60838072,155.48,155.42,16.0847]
[1721138587349,11.60838072,155.48,155.4,6.4349]
[1721138587561,6.4329,155.45,155.4,6.4349]
[1721138587760,10.0,155.47,155.4,6.4346]
[1721138588052,6.4334,155.44,155.39,7.2184054]
[1721138588246,6.4333,155.44,155.39,7.2184054]
[1721138588446,1.60853764,155.46,155.41,6.4343]
[1721138588757,1.60852063,155.47,155.43,6.4337]
[1721138588932,1.60852063,155.47,155.42,6.4341]
[1721138589130,1.60813576,155.48,155.43,6.4336]
[1721138589326,1.60813576,155.48,155.42,16.0845]
[1721138589327,6.4324,155.47,155.42,16.0845]
[1721138589527,1.60827049,155.47,155.42,16.0845]
[1721138589749,8.04047049,155.47,155.42,22.5186]
[1721138589951,1.60827049,155.47,155.42,22.5186]
[1721138590145,11.60827049,155.47,155.39,7.2184054]
[1721138590345,1.60827049,155.47,155.39,7.2184054]
[1721138590649,6.4328,155.46,155.4,6.4346]
[1721138590847,11.60821117,155.48,155.41,6.4344]
[1721138590848,8.04071244,155.47,155.41,6.4344]
[1721138591047,10.0,155.46,155.39,23.3068054]
[1721138591239,1.60835909,155.45,155.39,23.3068054]
[1721138591643,1.60835909,155.45,155.39,7.2184054]
[1721138591839,1.60835909,155.45,155.39,16.9300054]
[1721138592236,11.60845408,155.46,155.39,0.8419054]
[1721138592456,1.6084941,155.46,155.4,6.4348]
[1721138592753,8.04086423,155.46,155.41,6.4345]
[1721138593161,18.04045615,155.47,155.42,6.4341]
[1721138593360,18.04045615,155.47,155.41,6.4344]
[1721138593361,8.04045615,155.47,155.41,6.4344]
[1721138593738,6.4326,155.46,155.41,6.4344]
[1721138593969,1.60835615,155.47,155.41,6.4343]
[1721138594138,6.4322,155.47,155.39,16.9300054]
[1721138594645,1.60824202,155.48,155.43,6.4334]
[1721138594646,8.03994202,155.48,155.43,6.4334]
[1721138594840,6.4322,155.47,155.42,6.434]
[1721138595241,6.4318,155.48,155.42,6.434]
[1721138595656,6.4318,155.48,155.43,6.4336]
[1721138595860,1.60805832,155.49,155.41,16.0857]
[1721138596059,1.60818433,155.48,155.41,16.0857]
[1721138596256,6.4324,155.47,155.42,6.4338]
[1721138596448,1.60818433,155.48,155.41,16.0857]
[1721138596767,11.60818433,155.48,155.4,6.4349]
[1721138596940,6.4322,155.47,155.41,6.4345]
[1721138597138,6.4322,155.47,155.42,6.434]
[1721138597364,8.04104273,155.46,155.41,6.4345]
[1721138597560,16.4319,155.48,155.42,6.4338]
[1721138597764,6.4319,155.48,155.43,6.4337]
[1721138597965,20.0,155.48,155.4,16.087]
[1721138598166,6.433,155.45,155.4,22.5217]
[1721138598353,1.60835221,155.44,155.39,0.8419054]
[1721138598549,6.4342,155.42,155.39,0.8419054]
[1721138598866,1.60835221,155.44,155.39,0.8419054]
[1721138599163,6.4338,155.43,155.39,0.8419054]
[1721138599355,1.60836872,155.45,155.39,0.8419054]
[1721138599549,6.4334,155.44,155.39,0.8419054]
[1721138599859,8.04136872,155.45,155.4,6.4349]
[1721138600643,1.60842273,155.46,155.4,16.0869]
[1721138600839,6.4324,155.47,155.42,6.4341]
[1721138601067,6.4318,155.48,155.42,6.4337]
[1721138601271,1.60827036,155.49,155.43,1.28661629]
[1721138601272,1.60810791,155.49,155.43,1.28661629]
[1721138601455,16.64476278,155.52,155.44,1.28633647]
[1721138601456,1.60792059,155.51,155.44,1.28633647]
[1721138601650,1.60792059,155.51,155.45,6.4328]
[1721138601852,18.25312622,155.53,155.45,0.81104755]
[1721138602047,18.25312622,155.53,155.44,22.7016]
[1721138602373,6.4311,155.5,155.44,29.1348]
[1721138602592,8.25312622,155.53,155.46,6.4324]
[1721138602952,6.4301,155.52,155.46,16.0806]
[1721138603145,6.4301,155.52,155.47,1.28614014]
[1721138603451,6.4307,155.51,155.47,1.28614014]
[1721138603647,6.64527536,155.53,155.46,16.0806]
[1721138603849,8.037604,155.52,155.46,22.513]
[1721138604156,6.43,155.52,155.46,16.0806]
[1721138604357,6.4301,155.52,155.47,6.432]
[1721138604557,8.25287741,155.53,155.46,16.0806]
[1721138604867,8.25287741,155.53,155.44,6.6191]
[1721138605072,8.25287741,155.53,155.45,16.0816]
[1721138605269,8.25287741,155.53,155.44,6.6191]
[1721138605665,8.25287741,155.53,155.44,22.7018]
[1721138605868,1.60760205,155.53,155.44,22.7018]
[1721138606172,6.4305,155.51,155.46,6.4324]
[1721138606371,6.4313,155.49,155.44,22.7018]
[1721138606582,1.60767004,155.53,155.44,29.1351]
[1721138606947,10.0,155.5,155.44,6.6191]
[1721138607151,6.4329,155.45,155.4,12.6029]
[1721138607763,6.4321,155.47,155.42,6.4341]
[1721138608074,6.4313,155.49,155.44,6.4332]
[1721138608279,6.4313,155.49,155.45,0.52367185]
[1721138608455,1.60792972,155.48,155.42,22.5185]
[1721138608656,1.60807412,155.51,155.43,6.4336]
[1721138608855,10.0,155.5,155.42,16.0846]
[1721138609098,1.60813461,155.49,155.43,1.28650977]
[1721138609380,1.60807366,155.48,155.42,16.0846]
[1721138609672,1.60815771,155.5,155.43,1.28652616]
[1721138609862,6.4319,155.48,155.43,6.4336]
[1721138610268,1.60815771,155.5,155.42,16.0846]
[1721138610269,6.4313,155.49,155.44,7.71964357]
[1721138610469,6.431,155.5,155.45,6.4329]
[1721138610665,6.4312,155.49,155.46,1.28625218]
[1721138611085,1.60783596,155.53,155.47,1.28626877]
[1721138611288,6.4309,155.5,155.47,1.28626877]
[1721138611587,6.4305,155.51,155.47,17.47386877]
[1721138611883,6.4308,155.51,155.47,16.1876]
[1721138612063,6.4308,155.51,155.48,1.28602052]
[1721138612253,6.4305,155.51,155.47,16.1876]
[1721138612663,6.4308,155.5,155.47,16.1876]
[1721138613362,6.4305,155.51,155.48,1.28605808]
[1721138613564,6.4305,155.51,155.47,16.1876]
[1721138613990,6.4311,155.5,155.47,16.1876]
[1721138614173,6.4316,155.48,155.47,16.1876]
[1721138614381,6.4313,155.49,155.47,16.1876]
[1721138614606,6.4309,155.5,155.47,16.1876]
[1721138614799,1.60772085,155.52,155.4,6.168]
[1721138614800,16.0766,155.51,155.42,16.1876]
[1721138615096,10.0,155.49,155.42,16.1876]
[1721138615276,10.0,155.49,155.43,1.28648716]
[1721138615466,6.4321,155.47,155.43,1.28648716]
[1721138615792,10.0,155.49,155.43,1.28648716]
[1721138615995,6.4321,155.47,155.42,16.1876]
[1721138616300,17.68927878,155.46,155.4,6.168]
[1721138616623,1.60852175,155.45,155.39,0.8419054]
[1721138617170,6.4347,155.41,155.39,0.8419054]
[1721138617875,6.4342,155.42,155.39,0.8419054]
[1721138618399,11.60863148,155.44,155.39,0.8419054]
[1721138618567,16.4333,155.44,155.39,0.8419054]
[1721138618894,10.0,155.46,155.39,0.8419054]
[1721138619065,1.60828385,155.46,155.39,0.8419054]
[1721138619598,6.64554639,155.47,155.39,0.8419054]
[1721138619599,8.25382712,155.47,155.39,0.8419054]
[1721138619893,6.4309,155.5,155.44,6.4333]
[1721138620188,6.4309,155.5,155.43,22.518]
[1721138620569,6.4313,155.49,155.43,16.0844]
[1721138620770,6.4309,155.5,155.43,16.0844]
[1721138620969,6.4309,155.5,155.44,6.3484]
[1721138621274,1.60783596,155.52,155.44,6.3484]
[1721138621475,6.4312,155.5,155.44,6.3484]
[1721138621796,6.4313,155.49,155.44,6.3484]
[1721138621991,6.4308,155.51,155.44,6.3484]
[1721138622196,6.4308,155.51,155.44,12.7816]
[1721138622401,6.43,155.52,155.46,16.0811]
[1721138622574,6.43,155.52,155.45,22.8904]
[1721138622779,8.03702186,155.54,155.47,6.4317]
[1721138622989,1.60762186,155.54,155.46,16.0809]
[1721138623189,6.4301,155.52,155.46,16.0809]
[1721138623475,6.431,155.5,155.45,16.4575]
[1721138623876,6.4313,155.49,155.45,16.4575]
[1721138624083,6.4308,155.5,155.45,16.4575]
[1721138624280,6.4313,155.49,155.45,16.4575]
[1721138624597,6.4308,155.5,155.45,16.4575]
[1721138625400,1.60774506,155.49,155.45,16.4575]
[1721138625600,16.0784,155.49,155.41,15.1904]
[1721138625904,26.0784,155.49,155.41,15.1904]
[1721138626194,26.0784,155.49,155.39,0.8419054]
[1721138626195,6.4344,155.42,155.39,0.8419054]
[1721138626501,6.4346,155.41,155.39,0.8419054]
[1721138626688,8.0427432,155.43,155.39,0.8419054]
[1721138626886,6.4342,155.42,155.39,0.8419054]
[1721138627086,6.4347,155.41,155.39,0.8419054]
[1721138627593,6.4341,155.42,155.39,0.8419054]
[1721138628507,6.4337,155.43,155.39,0.8419054]
[1721138628682,6.4338,155.43,155.39,0.8419054]
[1721138628883,6.4334,155.44,155.39,0.8419054]
[1721138629285,6.4339,155.43,155.39,0.8419054]
[1721138629502,1.60847793,155.45,155.39,0.8419054]
[1721138629708,6.435,155.4,155.39,0.8419054]
[1721138631102,18.04408693,155.4,155.39,0.8419054]
[1721138631409,28.04408693,155.4,155.39,0.8419054]
[1721138631583,73.04408693,155.4,155.39,0.8419054]
[1721138631789,76.67021877,155.4,155.39,5.4e-06]
[1721138632180,6.4384,155.32,155.26,89.88513626]
[1721138632492,6.4384,155.32,155.26,83.44443626]
[1721138632493,6.4387,155.32,155.26,83.44443626]
[1721138632694,1.60992098,155.32,155.26,83.44443626]
[1721138632898,16.4387,155.31,155.26,83.44443626]
[1721138633195,16.64023487,155.33,155.26,83.44443626]
[1721138633401,1.60993553,155.32,155.26,83.44443626]
[1721138634097,6.4396,155.29,155.26,83.44443626]
[1721138634503,32.73503487,155.33,155.26,83.44443626]
[1721138634504,16.4391,155.3,155.26,83.44443626]
[1721138634685,1.61000758,155.29,155.26,83.44443626]
[1721138634988,1.61000733,155.3,155.26,83.44443626]
[1721138635194,6.4387,155.31,155.27,1.28797521]
[1721138635391,11.60985046,155.32,155.26,83.44443626]
[1721138636104,6.4401,155.28,155.26,83.44443626]
[1721138636699,6.4396,155.29,155.26,83.44443626]
[1721138637103,1.61004996,155.3,155.26,83.44443626]
[1721138637412,16.4388,155.31,155.26,83.44443626]
[1721138637593,10.0,155.31,155.27,6.4403]
[1721138637798,8.04801389,155.32,155.26,89.88513626]
[1721138637998,6.4387,155.31,155.26,83.44443626]
[1721138638202,1.60978754,155.32,155.26,83.44443626]
[1721138638603,8.04848754,155.32,155.26,83.44443626]
[1721138638923,1.60981875,155.32,155.26,89.88513626]
[1721138639149,8.04439797,155.4,155.27,22.0616]
[1721138639292,1.60939797,155.38,155.27,21.8916]
[1721138639612,1.60939797,155.38,155.31,6.4385]
[1721138639809,1.60939797,155.38,155.29,16.0987]
[1721138640000,6.4367,155.36,155.29,16.0987]
[1721138640309,1.60938183,155.38,155.32,6.4382]
[1721138640509,1.60938183,155.39,155.31,16.0959]
[1721138640902,1.6090499,155.4,155.36,21.63]
[1721138641105,1.60891703,155.39,155.31,6.4386]
[1721138641294,10.0,155.36,155.27,21.9374]
[1721138641495,6.4374,155.35,155.27,21.9374]
[1721138641690,8.04613942,155.37,155.29,6.4392]
[1721138641896,6.4366,155.36,155.29,6.4392]
[1721138642094,16.0866,155.41,155.32,6.4382]
[1721138642095,6.4354,155.39,155.32,6.4382]
[1721138642294,11.60936853,155.4,155.32,6.4382]
[1721138642295,1.60936853,155.4,155.32,6.4382]
[1721138642528,1.60916393,155.39,155.27,21.9374]
[1721138642831,6.4379,155.33,155.27,21.9374]
[1721138643256,6.4375,155.34,155.27,21.9374]
[1721138643426,8.04766307,155.33,155.27,28.3777]
[1721138643743,6.4391,155.31,155.27,21.9374]
[1721138643950,1.60972848,155.32,155.27,21.9374]
[1721138644138,6.4388,155.31,155.27,21.9374]
[1721138644328,6.4387,155.31,155.27,15.6254]
[1721138644532,1.60972848,155.32,155.26,83.44443626]
[1721138644533,1.6099278,155.3,155.26,83.44443626]
[1721138644917,8.04861011,155.31,155.26,83.44443626]
[1721138645134,1.60981984,155.33,155.26,83.44443626]
[1721138645417,1.60979401,155.32,155.26,83.44443626]
[1721138645633,6.439,155.31,155.26,83.44443626]
[1721138645945,1.60981943,155.33,155.26,89.88503626]
[1721138646153,10.0,155.36,155.27,1.28765977]
[1721138646313,10.0,155.36,155.27,22.5409]
[1721138646662,6.4374,155.35,155.28,6.4397]
[1721138647136,8.04713702,155.34,155.27,22.5412]
[1721138647546,10.0,155.36,155.27,16.1009]
[1721138647855,6.4366,155.37,155.29,16.098]
[1721138648016,6.4363,155.37,155.3,15.1722]
[1721138648215,8.04483414,155.39,155.33,6.4376]
[1721138648441,1.60943414,155.39,155.31,22.2488]
[1721138648651,6.435,155.4,155.31,22.2488]
[1721138648859,1.60903228,155.41,155.33,16.0938]
[1721138649023,8.24995199,155.42,155.34,1.28706008]
[1721138649346,6.4349,155.41,155.34,7.72436008]
[1721138649643,6.4343,155.42,155.34,1.28706008]
[1721138649824,6.4338,155.43,155.36,6.4364]
[1721138650031,8.23686906,155.45,155.35,6.4367]
[1721138650032,1.60862942,155.44,155.35,6.4367]
[1721138650357,8.23672558,155.45,155.35,16.0919]
[1721138650560,8.23643214,155.45,155.35,16.0919]
[1721138650736,6.4341,155.43,155.35,16.0919]
[1721138650934,6.4342,155.42,155.36,6.4366]
[1721138651137,6.4353,155.4,155.32,16.0957]
[1721138651436,1.60870048,155.39,155.31,6.1528]
[1721138651683,1.60921056,155.38,155.31,6.1528]
[1721138651832,6.4366,155.37,155.31,6.1528]
[1721138652037,36.0866,155.41,155.31,12.5914]
[1721138652038,1.60923922,155.4,155.31,12.5914]
[1721138652239,1.60911178,155.39,155.31,6.1528]
[1721138652439,6.4366,155.37,155.31,12.5913]
[1721138652657,1.60911178,155.39,155.31,6.1528]
[1721138652847,6.4374,155.35,155.31,6.1528]
[1721138653051,6.4366,155.37,155.31,6.1528]
[1721138653274,6.4371,155.35,155.31,6.1528]
[1721138653480,6.4383,155.32,155.31,6.1528]
[1721138653643,6.4397,155.29,155.27,6.5267]
[1721138654146,6.4399,155.28,155.26,99.29503626]
[1721138654346,6.4403,155.27,155.26,83.44443626]
[1721138654959,6.4398,155.29,155.26,83.44443626]
[1721138655274,8.05029769,155.28,155.26,83.44443626]
[1721138655444,8.05042348,155.27,155.26,83.44443626]
[1721138655658,18.05042348,155.27,155.26,83.44443626]
[1721138656479,42.5412,155.27,155.26,83.44443626]
[1721138656649,87.5412,155.27,155.26,83.44443626]
[1721138656847,42.7112,155.27,155.26,60.28193626]
[1721138657059,87.8812,155.27,155.26,60.28193626]
[1721138657392,107.1612,155.27,155.26,48.46821632]
[1721138657676,77.9297,155.24,155.23,2.172e-05]
[1721138657847,97.9297,155.24,155.23,2.172e-05]
[1721138658054,105.72634864,155.24,155.23,2.172e-05]
[1721138658469,58.6497,155.24,155.23,2.172e-05]
[1721138658669,78.6497,155.24,155.23,2.172e-05]
[1721138659051,20.0,155.24,155.23,2.172e-05]
[1721138659478,6.4414,155.25,155.23,2.172e-05]
[1721138659669,10.0,155.3,155.23,2.172e-05]
[1721138659881,11.61024467,155.29,155.23,2.172e-05]
[1721138660055,8.04932865,155.3,155.23,2.172e-05]
[1721138660390,1.61009142,155.29,155.23,2.172e-05]
[1721138660558,1.610086,155.29,155.23,2.172e-05]
[1721138660758,6.6275493,155.31,155.23,45.96690059]
[1721138661267,1.60963394,155.34,155.25,16.1024]
[1721138661485,6.44,155.28,155.23,2.172e-05]
[1721138661790,26.0941,155.34,155.23,2.172e-05]
[1721138661791,6.4395,155.29,155.23,2.172e-05]
[1721138661959,1.61013378,155.28,155.23,2.172e-05]
[1721138662164,6.4416,155.24,155.23,2.172e-05]
[1721138662356,8.05122113,155.26,155.23,2.172e-05]
[1721138662591,6.4413,155.25,155.23,2.172e-05]
[1721138662796,6.4416,155.24,155.23,2.172e-05]
[1721138663093,1.61032113,155.26,155.23,2.172e-05]
[1721138663258,1.61032113,155.28,155.23,2.172e-05]
[1721138663462,1.61007726,155.31,155.24,6.4416]
[1721138663655,1.61007726,155.31,155.23,2.172e-05]
[1721138663656,6.4383,155.32,155.25,1.2878407]
[1721138663865,1.60981934,155.32,155.23,6.44162172]
[1721138664082,8.04731934,155.34,155.25,16.1025]
[1721138664257,1.60981934,155.34,155.26,22.9466]
[1721138664458,8.04679459,155.35,155.28,6.4399]
[1721138664675,6.4381,155.33,155.26,22.9466]
[1721138665083,16.62510837,155.36,155.26,22.9466]
[1721138665084,1.60949977,155.32,155.26,22.9466]
[1721138665254,1.60949977,155.35,155.26,22.9466]
[1721138665587,1.60949977,155.35,155.27,1.05792398]
[1721138665588,6.4377,155.34,155.27,1.05792398]
[1721138665795,6.4363,155.37,155.3,6.4391]
[1721138666090,8.04530832,155.38,155.3,6.439]
[1721138666260,1.60920832,155.38,155.27,61.1003]
[1721138666462,1.60920832,155.38,155.27,16.1003]
[1721138666658,20.0,155.37,155.26,22.9466]
[1721138666881,1.60965096,155.36,155.26,29.3873]
[1721138667191,6.4377,155.34,155.26,39.0482]
[1721138667559,6.4377,155.34,155.27,6.4402]
[1721138667978,6.4377,155.34,155.26,39.0482]
[1721138668289,1.60947649,155.37,155.26,39.0482]
[1721138668467,6.4362,155.37,155.26,58.3282]
[1721138668656,6.4362,155.37,155.27,45.17]
[1721138668862,1.60919658,155.37,155.27,45.0]
[1721138669073,6.4375,155.34,155.26,45.4887]
[1721138669284,11.60919658,155.37,155.26,45.4887]
[1721138669484,1.60919658,155.37,155.27,6.4402]
[1721138669687,1.60919658,155.37,155.26,39.0482]
[1721138669688,10.0,155.36,155.26,39.0482]
[1721138669992,6.4393,155.3,155.26,22.9466]
[1721138670164,6.4396,155.29,155.26,22.9466]
[1721138670367,11.60983398,155.33,155.26,22.9466]
[1721138670368,6.4401,155.28,155.26,22.9466]